bitfinex/quotes_SOLUSD_20250310
["timestamp","ask_amount","ask_price","bid_price","bid_amount"]
[1741630187542,2.0,118.43,118.42,94.32414772]
[1741630187740,2.0,118.44,118.42,94.32414772]
[1741630188047,0.17638923,118.45,118.44,18.933972]
[1741630188334,0.063,118.53,118.49,0.14216157]
[1741630188542,0.063,118.54,118.51,18.933972]
[1741630188833,0.063,118.54,118.53,67.22999886]
[1741630189039,2.063,118.54,118.53,75.66659886]
[1741630189237,2.22794606,118.54,118.53,67.22999886]
[1741630189545,0.22794606,118.54,118.53,75.66659886]
[1741630190114,2.22794606,118.54,118.53,75.66659886]
[1741630190842,2.22794606,118.54,118.53,66.94567572]
[1741630191159,2.22794606,118.54,118.53,85.87964772]
[1741630191358,2.22794606,118.54,118.53,94.03192458]
[1741630191558,2.22794606,118.54,118.53,66.94567572]
[1741630192055,2.22794606,118.54,118.53,85.59532458]
[1741630192270,2.22794606,118.54,118.53,66.94567572]
[1741630192754,2.22794606,118.54,118.53,94.03192458]
[1741630192953,2.22794606,118.54,118.53,94.31624772]
[1741630193158,0.22794606,118.54,118.53,94.31624772]
[1741630193352,0.22794606,118.54,118.53,161.26192344]
[1741630194053,2.22794606,118.54,118.53,161.26192344]
[1741630194358,2.22794606,118.54,118.53,94.17544681]
[1741630195363,0.22794606,118.54,118.53,94.17544681]
[1741630195659,0.24299635,118.56,118.54,18.933972]
[1741630195830,0.15749246,118.58,118.56,18.64964886]
[1741630195831,2.15749246,118.58,118.56,18.64964886]
[1741630196032,0.15749246,118.58,118.57,85.73884681]
[1741630196257,0.18527582,118.59,118.58,18.64964886]
[1741630196439,0.16914821,118.6,118.59,0.28432314]
[1741630196643,4.821e-05,118.6,118.59,152.54372162]
[1741630197031,7.68e-05,118.61,118.6,18.933972]
[1741630197362,7.68e-05,118.61,118.6,160.97542162]
[1741630197538,0.063,118.62,118.6,160.97542162]
[1741630197739,0.063,118.62,118.61,152.25939848]
[1741630198642,2.0,118.64,118.61,152.25939848]
[1741630198643,2.0,118.64,118.62,18.64964886]
[1741630198846,2.0,118.65,118.63,67.08919795]
[1741630199058,2.0,118.64,118.63,0.28432314]
[1741630199259,1.03,118.66,118.65,0.28432314]
[1741630200151,1.03,118.66,118.65,133.89407276]
[1741630200355,0.063,118.68,118.65,152.54372162]
[1741630200557,0.063,118.68,118.67,152.25939848]
[1741630201061,0.063,118.68,118.67,66.80487481]
[1741630201660,20.063,118.68,118.66,66.80487481]
[1741630201877,20.063,118.68,118.62,66.80487481]
[1741630201878,20.063,118.68,118.67,66.80487481]
[1741630202242,20.063,118.68,118.62,66.80487481]
[1741630202570,20.063,118.68,118.66,66.80487481]
[1741630202741,20.063,118.68,118.65,66.80487481]
[1741630202946,20.0,118.64,118.56,66.80487481]
[1741630203150,12.78,118.63,118.62,66.80487481]
[1741630203445,12.78,118.63,118.58,29.5159]
[1741630203652,12.78,118.63,118.6,0.28432314]
[1741630203845,12.78,118.63,118.62,66.80487481]
[1741630204157,223.4,118.66,118.62,152.25939848]
[1741630204345,223.4,118.66,118.65,66.80487481]
[1741630204544,223.4,118.66,118.6,0.28432314]
[1741630204743,223.4,118.66,118.65,66.80487481]
[1741630205060,12.78,118.67,118.65,66.80487481]
[1741630205267,12.78,118.67,118.66,66.80487481]
[1741630208345,12.78,118.67,118.62,85.45452367]
[1741630208563,12.78,118.67,118.66,66.80487481]
[1741630208963,35.927272,118.67,118.66,0.063]
[1741630209160,12.94599773,118.67,118.66,66.86787481]
[1741630209496,12.94599773,118.67,118.66,0.063]
[1741630209877,156.16000574,118.67,118.66,0.063]
[1741630210046,20.28432314,118.63,118.59,66.80487481]
[1741630210367,20.0,118.6,118.58,66.80487481]
[1741630210548,12.76,118.59,118.56,66.80487481]
[1741630210747,20.0,118.56,118.55,66.80487481]
[1741630210948,12.76,118.59,118.55,66.80487481]
[1741630211168,12.76,118.59,118.58,66.80487481]
[1741630211858,223.3,118.63,118.58,66.80487481]
[1741630212054,223.3,118.63,118.61,66.80487481]
[1741630212755,223.3,118.63,118.62,66.80487481]
[1741630213359,223.3,118.63,118.62,133.60974962]
[1741630214756,223.3,118.63,118.57,18.933972]
[1741630214959,223.3,118.63,118.62,66.80487481]
[1741630216654,0.16599773,118.67,118.63,18.64964886]
[1741630216878,0.16599773,118.67,118.64,0.28432314]
[1741630217273,0.16599773,118.67,118.66,66.80487481]
[1741630217453,20.16599773,118.67,118.66,66.80487481]
[1741630217649,20.16599773,118.67,118.65,66.80487481]
[1741630217973,20.0,118.63,118.59,8.432]
[1741630218169,20.0,118.63,118.6,18.64964886]
[1741630218386,12.76,118.66,118.6,18.64964886]
[1741630218680,14.31105915,118.66,118.64,66.80487481]
[1741630218857,14.02673601,118.66,118.64,66.80487481]
[1741630219060,14.02673601,118.66,118.58,13.3396]
[1741630219283,14.02673601,118.66,118.64,66.80487481]
[1741630219461,12.76,118.66,118.64,66.80487481]
[1741630219667,16.9739,118.66,118.64,66.80487481]
[1741630219862,0.28432314,118.65,118.63,66.80487481]
[1741630220063,20.0,118.63,118.62,66.80487481]
[1741630220379,20.0,118.62,118.58,0.28432314]
[1741630220576,20.0,118.65,118.58,0.28432314]
[1741630220765,0.16599773,118.67,118.58,0.28432314]
[1741630220977,17.13939773,118.67,118.66,66.80487481]
[1741630221277,17.16939773,118.67,118.66,66.80487481]
[1741630221478,17.16939773,118.67,118.65,66.80487481]
[1741630222866,20.0,118.65,118.64,66.86787481]
[1741630223853,0.19599773,118.67,118.64,66.86787481]
[1741630224059,0.19599773,118.67,118.66,85.45452367]
[1741630224253,0.19599773,118.67,118.66,152.54372162]
[1741630224689,0.22305845,118.68,118.67,18.64964886]
[1741630224981,4.43605845,118.68,118.67,66.80487481]
[1741630225156,0.22305845,118.68,118.67,66.80487481]
[1741630225553,0.22305845,118.68,118.67,85.45452367]
[1741630225961,0.22305845,118.68,118.67,160.97042162]
[1741630226158,0.16074268,118.69,118.68,0.28432314]
[1741630226351,0.16074268,118.69,118.68,133.60974962]
[1741630226771,0.16074268,118.69,118.68,66.80487481]
[1741630227076,20.16074268,118.69,118.64,0.063]
[1741630227269,20.0,118.68,118.67,66.80487481]
[1741630228394,20.16074268,118.69,118.67,66.80487481]
[1741630228684,20.16074268,118.69,118.68,66.80487481]
[1741630228866,0.16074268,118.69,118.68,66.80487481]
[1741630229050,0.18316786,118.69,118.68,66.80487481]
[1741630229665,0.18316786,118.69,118.68,133.60974962]
[1741630229958,0.18316786,118.69,118.68,66.80487481]
[1741630230163,0.18316786,118.69,118.68,160.68539848]
[1741630230469,0.18316786,118.69,118.68,160.96972162]
[1741630231079,0.16715654,118.7,118.69,18.64964886]
[1741630231287,0.23903975,118.71,118.69,85.73884681]
[1741630231501,0.15723076,118.73,118.72,0.28432314]
[1741630231658,0.15723076,118.73,118.72,133.89407276]
[1741630231859,0.15723076,118.73,118.72,142.31717276]
[1741630232058,0.17524306,118.75,118.74,20.0]
[1741630232358,0.17404349,118.76,118.75,18.933972]
[1741630232560,0.18407991,118.78,118.75,85.73884681]
[1741630232774,0.18407991,118.78,118.76,66.80487481]
[1741630233287,0.18407991,118.78,118.77,0.28432314]
[1741630233488,0.03,118.8,118.78,18.933972]
[1741630233788,12.74,118.87,118.8,0.28432314]
[1741630233986,12.74,118.87,118.86,66.80487481]
[1741630234165,223.24,118.88,118.86,66.80487481]
[1741630234505,235.98,118.88,118.87,66.80487481]
[1741630234678,223.24,118.88,118.87,66.80487481]
[1741630234979,223.24,118.88,118.86,66.80487481]
[1741630235565,226.6048,118.88,118.85,66.80487481]
[1741630235764,226.6048,118.88,118.84,66.80487481]
[1741630235968,25.80543775,118.89,118.87,66.80487481]
[1741630236181,13.06543775,118.89,118.88,66.80487481]
[1741630236985,38.85326652,118.9,118.87,66.80487481]
[1741630236986,16.1042,118.9,118.87,66.80487481]
[1741630237180,16.1042,118.9,118.86,66.80487481]
[1741630237382,20.0,118.87,118.85,66.80487481]
[1741630237583,16.1042,118.9,118.86,66.80487481]
[1741630237782,12.74,118.9,118.88,66.80487481]
[1741630238000,83.06673601,118.93,118.89,66.80487481]
[1741630238183,12.74,118.92,118.91,66.80487481]
[1741630238695,3.3633,118.93,118.91,66.80487481]
[1741630238869,4.62983601,118.94,118.86,66.80487481]
[1741630239197,12.74,118.94,118.92,66.80487481]
[1741630240064,235.92,118.96,118.93,66.80487481]
[1741630240380,239.2825,118.96,118.92,66.80487481]
[1741630240566,12.74,118.95,118.94,66.80487481]
[1741630240766,12.74,118.95,118.93,66.80487481]
[1741630240991,18.64964886,118.94,118.91,66.80487481]
[1741630241179,20.0,118.9,118.88,66.80487481]
[1741630241491,12.74,118.89,118.88,66.80487481]
[1741630243473,12.74,118.89,118.87,66.80487481]
[1741630243474,16.1044,118.89,118.87,66.80487481]
[1741630243787,16.1045,118.89,118.87,66.80487481]
[1741630244100,31.36964886,118.93,118.86,66.80487481]
[1741630244269,20.0,118.89,118.87,66.80487481]
[1741630244473,20.0,118.89,118.82,36.738672]
[1741630244474,20.0,118.89,118.86,66.80487481]
[1741630244676,38.64964886,118.86,118.81,4.6125]
[1741630244879,18.64964886,118.83,118.76,4.6077]
[1741630245178,18.64964886,118.81,118.74,9.0593]
[1741630245492,1.26673601,118.8,118.77,66.80487481]
[1741630245692,18.64964886,118.79,118.77,66.80487481]
[1741630245996,18.64964886,118.79,118.74,75.86417481]
[1741630245997,12.72,118.78,118.75,18.933972]
[1741630246170,12.72,118.82,118.75,18.933972]
[1741630246494,12.72,118.86,118.79,0.14216157]
[1741630247197,12.72,118.86,118.85,66.80487481]
[1741630247500,0.03,118.89,118.85,133.60974962]
[1741630247684,0.03,118.89,118.88,66.80487481]
[1741630249170,0.21319742,118.89,118.88,75.21667481]
[1741630249372,0.21319742,118.89,118.88,66.80487481]
[1741630250489,0.21319742,118.89,118.86,66.80487481]
[1741630250693,0.21319742,118.89,118.88,66.80487481]
[1741630251004,3.57759742,118.89,118.87,66.80487481]
[1741630251188,12.72,118.88,118.84,66.80487481]
[1741630251389,18.64964886,118.87,118.8,71.66967481]
[1741630251570,20.0,118.84,118.76,8.4202]
[1741630251774,20.0,118.83,118.81,66.80487481]
[1741630252078,20.0,118.81,118.75,14.2719]
[1741630252383,20.0,118.81,118.8,66.80487481]
[1741630253308,38.64964886,118.81,118.8,66.80487481]
[1741630253507,20.0,118.8,118.78,66.80487481]
[1741630253988,23.3671,118.8,118.78,66.80487481]
[1741630254184,23.3671,118.8,118.74,66.80487481]
[1741630254185,23.3671,118.8,118.77,66.80487481]
[1741630254372,23.367,118.8,118.78,66.80487481]
[1741630254577,3.367,118.8,118.77,66.80487481]
[1741630254878,83.06673601,118.81,118.78,66.80487481]
[1741630254879,20.0,118.79,118.78,66.80487481]
[1741630255107,41.63323601,118.82,118.78,66.80487481]
[1741630255275,18.64964886,118.81,118.79,66.80487481]
[1741630255695,20.0,118.79,118.78,66.80487481]
[1741630255895,20.0,118.79,118.74,66.80487481]
[1741630255896,20.0,118.78,118.77,66.80487481]
[1741630256084,20.0,118.78,118.72,0.063]
[1741630256085,18.64964886,118.77,118.76,66.80487481]
[1741630256287,12.72,118.78,118.76,66.80487481]
[1741630256603,12.72,118.78,118.77,66.80487481]
[1741630257489,32.72,118.78,118.77,66.80487481]
[1741630258082,81.8,118.8,118.77,66.80487481]
[1741630258407,99.15373601,118.8,118.78,66.80487481]
[1741630258881,18.64964886,118.79,118.78,66.80487481]
[1741630259085,18.64964886,118.79,118.76,66.80487481]
[1741630259307,20.0,118.77,118.76,66.80487481]
[1741630259891,18.64964886,118.76,118.74,0.063]
[1741630260083,23.28448487,118.76,118.74,0.063]
[1741630260420,142.08448487,118.76,118.74,0.063]
[1741630260711,118.8,118.75,118.74,0.063]
[1741630260915,118.8,118.75,118.74,66.86787481]
[1741630261107,20.0,118.77,118.74,66.86787481]
[1741630261285,235.66,118.8,118.76,66.80487481]
[1741630261483,3.3662,118.83,118.79,66.80487481]
[1741630261794,16.0861,118.83,118.82,66.80487481]
[1741630261982,34.73574886,118.83,118.82,66.80487481]
[1741630262178,34.73574886,118.83,118.81,66.80487481]
[1741630262400,18.64964886,118.82,118.8,66.80487481]
[1741630262592,20.0,118.8,118.79,66.80487481]
[1741630262799,38.64964886,118.8,118.79,66.80487481]
[1741630262990,18.64964886,118.79,118.77,66.80487481]
[1741630263190,20.0,118.79,118.78,66.80487481]
[1741630263396,16.0861,118.83,118.78,66.80487481]
[1741630263708,12.72,118.83,118.82,66.80487481]
[1741630263887,19.91638487,118.84,118.82,66.80487481]
[1741630264208,34.73574886,118.83,118.82,66.80487481]
[1741630264411,20.0,118.81,118.8,66.80487481]
[1741630265116,12.72,118.83,118.8,133.60974962]
[1741630265308,12.72,118.83,118.82,66.80487481]
[1741630265814,16.0861,118.83,118.82,66.80487481]
[1741630266209,83.06673601,118.85,118.82,66.80487481]
[1741630266390,12.7,118.86,118.84,66.80487481]
[1741630266714,56.91638487,118.86,118.75,21.0523]
[1741630266887,38.64964886,118.83,118.82,66.80487481]
[1741630267083,38.64964886,118.83,118.81,66.80487481]
[1741630267287,118.8,118.84,118.82,66.80487481]
[1741630267504,118.8,118.84,118.83,66.80487481]
[1741630267912,12.7,118.86,118.83,66.80487481]
[1741630268103,12.7,118.86,118.85,66.80487481]
[1741630268305,235.68,118.87,118.85,66.80487481]
[1741630268503,222.98,118.87,118.86,66.80487481]
[1741630268903,0.21319742,118.89,118.86,133.60974962]
[1741630269099,0.19462472,118.89,118.88,66.80487481]
[1741630271016,0.19462472,118.89,118.87,66.80487481]
[1741630271198,12.7,118.88,118.82,13.2755]
[1741630271392,12.7,118.88,118.82,34.3157]
[1741630271710,12.7,118.88,118.87,66.80487481]
[1741630273118,16.0647,118.88,118.86,66.80487481]
[1741630273421,12.7,118.88,118.87,66.80487481]
[1741630273590,0.19462472,118.89,118.87,66.80487481]
[1741630273791,12.89462472,118.89,118.88,66.80487481]
[1741630274198,0.19462472,118.89,118.88,66.80487481]
[1741630275624,3.55912472,118.89,118.82,13.2755]
[1741630275797,137.44964886,118.88,118.8,66.86787481]
[1741630276110,18.64964886,118.81,118.8,0.063]
[1741630276422,31.34964886,118.81,118.8,0.063]
[1741630276590,18.64964886,118.77,118.74,0.063]
[1741630276794,19.91638487,118.77,118.74,66.86787481]
[1741630277040,18.64964886,118.77,118.75,66.80487481]
[1741630277216,38.64964886,118.77,118.74,0.063]
[1741630277525,18.64964886,118.76,118.74,66.86787481]
[1741630277821,118.8,118.78,118.75,66.80487481]
[1741630278013,134.8663,118.83,118.75,18.933972]
[1741630278218,226.2465,118.82,118.8,66.80487481]
[1741630278599,222.88,118.82,118.81,66.80487481]
[1741630279534,118.8,118.86,118.81,66.80487481]
[1741630279696,12.7,118.86,118.85,66.80487481]
[1741630280507,16.0653,118.86,118.85,66.80487481]
[1741630280712,16.0653,118.86,118.84,66.80487481]
[1741630280907,20.0,118.84,118.82,66.80487481]
[1741630281294,20.0,118.84,118.83,66.80487481]
[1741630282010,20.03,118.84,118.83,66.80487481]
[1741630282206,18.67964886,118.84,118.8,66.80487481]
[1741630282407,20.0,118.79,118.75,0.063]
[1741630282729,3.3678,118.77,118.75,66.86787481]
[1741630283031,3.3678,118.77,118.75,0.063]
[1741630283221,37.33433601,118.78,118.75,66.86787481]
[1741630283819,18.64964886,118.77,118.75,0.063]
[1741630284023,120.06673601,118.76,118.75,0.063]
[1741630284214,118.8,118.76,118.75,0.063]
[1741630284404,20.0,118.76,118.75,0.063]
[1741630284805,23.3681,118.76,118.75,0.063]
[1741630285315,20.0,118.76,118.75,0.063]
[1741630285518,120.06673601,118.79,118.75,66.86787481]
[1741630285719,0.03,118.84,118.78,66.80487481]
[1741630286031,13.10085869,118.86,118.85,22.0]
[1741630286230,0.19462472,118.89,118.88,2.0]
[1741630286435,7.086e-05,118.92,118.91,2.0]
[1741630286603,52.40343477,118.97,118.95,2.0]
[1741630286807,78.60515216,118.99,118.98,22.0]
[1741630287101,5.216e-05,118.99,118.98,2.0]
[1741630287323,5.216e-05,118.99,118.97,14.68]
[1741630287517,95.74673601,119.1,118.98,34.5762]
[1741630287710,12.68,119.1,119.08,66.80487481]
[1741630287914,2.0,119.09,118.98,81.38107481]
[1741630288100,12.68,119.1,119.06,66.80487481]
[1741630288307,12.68,119.09,119.04,66.80487481]
[1741630288634,20.0,119.06,119.05,66.80487481]
[1741630288940,14.5,119.08,119.05,66.80487481]
[1741630289230,14.65849439,119.08,119.07,66.80487481]
[1741630289435,0.15849439,119.08,119.07,66.80487481]
[1741630289742,92.95591352,119.12,119.07,133.60974962]
[1741630289905,0.1830202,119.14,119.11,66.80487481]
[1741630290111,103.4861472,119.15,119.14,20.0]
[1741630290112,86.63278243,119.15,119.14,20.0]
[1741630290310,42.56434232,119.16,119.14,153.60974962]
[1741630290535,231.35566747,119.2,119.15,0.28432314]
[1741630290705,2.639e-05,119.2,119.19,349.02110657]
[1741630290917,114.73870615,119.31,119.26,18.933972]
[1741630291111,1.26673601,119.36,119.3,66.80487481]
[1741630291320,238.42261891,119.41,119.35,66.80487481]
[1741630291528,157.25150973,119.41,119.36,66.80487481]
[1741630291733,157.25150973,119.41,119.38,66.80487481]
[1741630291941,157.25150973,119.41,119.39,66.80487481]
[1741630292124,157.25150973,119.41,119.4,66.80487481]
[1741630292522,140.41799413,119.41,119.4,133.60974962]
[1741630292714,140.41799413,119.41,119.4,141.98494962]
[1741630293042,30.31658764,119.41,119.4,166.76927276]
[1741630293340,232.5938,119.54,119.44,0.28432314]
[1741630293638,222.6,119.54,119.47,0.28432314]
[1741630293841,222.6,119.54,119.47,24.5]
[1741630294017,222.6,119.54,119.53,66.80487481]
[1741630294341,222.52,119.57,119.53,66.80487481]
[1741630294562,222.52,119.57,119.48,18.30192463]
[1741630294724,222.52,119.57,119.49,0.28432314]
[1741630295037,222.52,119.57,119.56,66.80487481]
[1741630295246,2.71161634,119.6,119.56,91.30487481]
[1741630295407,9.7734,119.61,119.52,66.80487481]
[1741630295408,222.52,119.63,119.58,66.80487481]
[1741630295611,20.0,119.6,119.56,66.80487481]
[1741630295848,66.80487481,119.62,119.56,114.33993854]
[1741630296050,0.28432314,119.6,119.56,47.53506373]
[1741630296219,0.28432314,119.61,119.56,47.53506373]
[1741630296418,18.64964886,119.56,119.54,52.40343477]
[1741630296651,27.42805038,119.55,119.54,28.63343477]
[1741630296854,102.72639762,119.55,119.54,23.65723477]
[1741630297144,18.64964886,119.54,119.51,12.4860368]
[1741630297353,222.22,119.53,119.51,12.4860368]
[1741630297553,85.45452367,119.52,119.51,12.4860368]
[1741630297847,0.28432314,119.52,119.51,12.4860368]
[1741630298046,20.4955,119.55,119.53,94.12627932]
[1741630298047,310.15834724,119.55,119.53,94.12627932]
[1741630298222,222.22,119.55,119.53,94.12627932]
[1741630299132,222.22,119.55,119.51,74.31471161]
[1741630299448,12.64,119.54,119.49,66.80487481]
[1741630299652,12.64,119.54,119.46,120.60487481]
[1741630299653,12.64,119.54,119.5,66.80487481]
[1741630299952,98.09452367,119.54,119.48,66.80487481]
[1741630300156,18.64964886,119.52,119.47,66.80487481]
[1741630300325,75.29834724,119.63,119.5,18.933972]
[1741630300524,309.93834724,119.63,119.5,53.8]
[1741630300723,222.02,119.63,119.61,66.80487481]
[1741630300942,222.02,119.63,119.62,66.80487481]
[1741630302155,222.02,119.63,119.58,120.60487481]
[1741630302446,234.64,119.63,119.58,66.80487481]
[1741630302656,222.02,119.63,119.55,53.8]
[1741630302855,222.02,119.63,119.62,66.80487481]
[1741630303026,221.84,119.68,119.62,120.60487481]
[1741630303223,221.84,119.68,119.67,66.80487481]
[1741630303641,221.84,119.68,119.64,53.8]
[1741630304160,66.80487481,119.67,119.58,120.60487481]
[1741630304360,66.80487481,119.65,119.58,53.8]
[1741630304574,66.80487481,119.64,119.59,66.80487481]
[1741630304874,66.80487481,119.64,119.52,8.3667]
[1741630304875,20.0,119.59,119.51,58.5335]
[1741630305053,234.46,119.58,119.51,58.5335]
[1741630305252,66.80487481,119.53,119.43,58.342]
[1741630305575,12.62,119.52,119.43,58.342]
[1741630305869,20.0,119.49,119.43,58.342]
[1741630306079,221.72,119.48,119.43,66.80487481]
[1741630306286,221.72,119.48,119.47,66.80487481]
[1741630306446,221.72,119.54,119.47,66.80487481]
[1741630306641,66.80487481,119.51,119.4,120.60487481]
[1741630306843,297.01834724,119.54,119.46,66.80487481]
[1741630307042,86.80487481,119.51,119.45,66.80487481]
[1741630307276,66.80487481,119.5,119.44,66.80487481]
[1741630307454,20.0,119.46,119.39,0.063]
[1741630307657,221.72,119.45,119.43,66.80487481]
[1741630308566,221.72,119.45,119.4,66.80487481]
[1741630308748,294.38517481,119.45,119.39,0.063]
[1741630308949,18.64964886,119.44,119.39,0.063]
[1741630309152,66.95696618,119.4,119.39,0.063]
[1741630309379,12.89209137,119.4,119.39,0.063]
[1741630309605,32.89209137,119.4,119.39,0.063]
[1741630309786,99.69696618,119.4,119.39,0.063]
[1741630310072,12.89209137,119.4,119.39,0.063]
[1741630310453,32.89209137,119.4,119.39,0.063]
[1741630310882,124.35137661,119.4,119.39,0.063]
[1741630311081,105.55956618,119.4,119.39,0.063]
[1741630311379,32.89209137,119.4,119.39,0.063]
[1741630311588,0.15209137,119.4,119.39,66.86787481]
[1741630311955,0.15209137,119.4,119.39,120.66787481]
[1741630312157,0.16237733,119.41,119.39,68.12364157]
[1741630312384,0.16237733,119.41,119.4,133.60974962]
[1741630313082,0.16237733,119.41,119.4,152.54372162]
[1741630313264,0.15120466,119.42,119.41,18.79181043]
[1741630313472,0.15120466,119.42,119.41,18.933972]
[1741630313690,0.16118471,119.43,119.41,53.8]
[1741630313991,0.16118471,119.43,119.42,66.80487481]
[1741630314171,0.16118471,119.43,119.39,0.063]
[1741630314366,0.16118471,119.43,119.41,66.80487481]
[1741630314558,0.16118471,119.43,119.39,66.86787481]
[1741630314884,6.02238471,119.43,119.39,0.063]
[1741630315064,0.16118471,119.43,119.4,66.80487481]
[1741630315269,0.16118471,119.43,119.39,0.063]
[1741630315270,6.02248471,119.43,119.39,66.86787481]
[1741630315583,0.16118471,119.43,119.39,0.063]
[1741630315888,0.16118471,119.43,119.4,66.80487481]
[1741630316058,0.16118471,119.43,119.42,66.80487481]
[1741630316589,0.16118471,119.43,119.41,66.80487481]
[1741630316763,0.16118471,119.43,119.39,0.063]
[1741630316963,6.02238471,119.43,119.39,66.86787481]
[1741630317160,0.16118471,119.43,119.41,66.80487481]
[1741630317390,0.16118471,119.43,119.42,66.80487481]
[1741630318291,0.16118471,119.43,119.39,53.863]
[1741630318464,0.16118471,119.43,119.4,66.80487481]
[1741630318662,6.02238471,119.43,119.39,66.86787481]
[1741630318987,18.6817,119.42,119.39,66.86787481]
[1741630319188,221.78,119.41,119.4,0.063]
[1741630319764,221.78,119.41,119.4,66.86787481]
[1741630319992,221.78,119.41,119.4,0.063]
[1741630320371,288.58487481,119.41,119.4,0.063]
[1741630320567,288.58487481,119.41,119.39,0.063]
[1741630320787,66.94703638,119.4,119.39,0.0001]
[1741630320984,5.8626,119.4,119.39,0.0001]
[1741630321172,72.66747481,119.4,119.39,0.0001]
[1741630321367,5.8626,119.4,119.39,0.0001]
[1741630321782,72.95179795,119.4,119.39,0.0001]
[1741630321965,72.66747481,119.4,119.39,0.0001]
[1741630322288,72.95179795,119.4,119.39,0.0001]
[1741630322662,20.0,119.37,119.3,66.80487481]
[1741630322891,12.88,119.36,119.31,66.80487481]
[1741630323098,12.88,119.36,119.34,66.80487481]
[1741630323268,5.8626,119.4,119.35,66.80487481]
[1741630323467,33.4392,119.4,119.32,53.8]
[1741630323667,108.73754724,119.4,119.32,66.80487481]
[1741630323900,66.80487481,119.38,119.32,66.80487481]
[1741630324067,138.05074724,119.4,119.32,66.80487481]
[1741630324274,138.05074724,119.4,119.29,73.70661748]
[1741630324275,33.4392,119.4,119.29,73.70661748]
[1741630324479,221.78,119.41,119.39,66.80487481]
[1741630324680,227.6421,119.41,119.4,66.80487481]
[1741630324989,227.6421,119.41,119.34,120.60487481]
[1741630324990,242.2974,119.41,119.34,120.60487481]
[1741630325299,5.8621,119.41,119.38,66.80487481]
[1741630325471,5.3621,119.41,119.38,66.80487481]
[1741630325793,20.0174,119.41,119.3,18.64964886]
[1741630325995,66.80487481,119.38,119.32,66.80487481]
[1741630326192,162.12062205,119.41,119.35,66.80487481]
[1741630326398,221.84,119.42,119.4,66.80487481]
[1741630326576,0.16118471,119.43,119.41,66.80487481]
[1741630326782,0.16118471,119.43,119.42,66.80487481]
[1741630327080,0.16118471,119.43,119.42,139.39668524]
[1741630327283,0.1518969,119.46,119.44,0.14216157]
[1741630327589,0.1518969,119.46,119.45,66.80487481]
[1741630328075,0.1518969,119.46,119.45,139.53884681]
[1741630328277,0.16936385,119.48,119.46,18.64964886]
[1741630328477,20.4959,119.54,119.47,66.80487481]
[1741630328674,20.4959,119.54,119.42,8.3735]
[1741630328675,66.80487481,119.51,119.42,53.8]
[1741630328877,66.80487481,119.48,119.4,120.60487481]
[1741630329201,0.15771782,119.45,119.41,18.64964886]
[1741630329374,0.18105602,119.46,119.44,0.14216157]
[1741630329569,0.18105602,119.46,119.44,53.8]
[1741630329776,0.18105602,119.46,119.45,18.64964886]
[1741630329974,0.18105602,119.46,119.45,66.80487481]
[1741630330175,0.18105602,119.46,119.45,85.45452367]
[1741630330400,0.16184008,119.48,119.45,85.45452367]
[1741630330578,0.16184008,119.48,119.42,53.8]
[1741630330781,19.42064008,119.48,119.44,66.80487481]
[1741630330983,13.56184008,119.48,119.45,0.14216157]
[1741630331200,0.17238651,119.49,119.47,0.28432314]
[1741630331402,0.17238651,119.49,119.47,53.8]
[1741630331692,6.03058651,119.49,119.46,66.80487481]
[1741630332112,66.80487481,119.47,119.41,66.80487481]
[1741630332401,221.78,119.46,119.39,0.063]
[1741630332571,80.42487481,119.45,119.39,66.86787481]
[1741630332768,221.81,119.46,119.39,0.063]
[1741630333075,66.80487481,119.42,119.39,0.063]
[1741630333390,20.5123,119.44,119.39,0.063]
[1741630333578,20.5123,119.44,119.4,66.80487481]
[1741630333579,5.8606,119.44,119.4,66.80487481]
[1741630333786,66.80487481,119.42,119.39,0.063]
[1741630333980,5.8606,119.44,119.41,66.80487481]
[1741630334197,87.31717481,119.44,119.39,0.063]
[1741630334393,66.80487481,119.43,119.39,0.063]
[1741630334799,5.8606,119.44,119.42,66.80487481]
[1741630335105,221.81,119.46,119.43,66.80487481]
[1741630335296,221.81,119.46,119.43,18.79181043]
[1741630335794,0.18187763,119.5,119.48,38.933972]
[1741630335999,0.16608392,119.51,119.49,0.14216157]